Cogmind - Beta 10.2 *** ADVENTURER MODE // 2021.12.08 @ 23:20:47 Player: Cubemaster Result: Destroyed by P-70 Sage with Tesla Rifle Performance ------------- Evolutions (6) 3000 Regions Visited (14) 2800 Robots Destroyed (125) 625 Value Destroyed (5785) 5785 Prototype IDs (5) 100 Alien Tech Used (0) 0 Bonus (162) 162 TOTAL SCORE: 12472 Bonus ------- High Alert Combat Kills 82 Follower Combat Kills 80 Cogmind --------- Core Integrity 0/1150 Matter 131/300 Energy 98/100 System Corruption 35% Temperature Cool (0) Movement Core (50) Location -4/Factory Parts ------- > --- POWER (2) -------- (None) > --- PROPULSION (4) --- (None) > --- UTILITY (9) ------ Improved Signal Interpreter Targeting Computer > --- WEAPON (4) ------- (None) > --- INVENTORY (4) ---- (None) Peak State ------------ > --- POWER ------------ Improved Deuterium Engine Micro Fission Core > --- PROPULSION ------- Improved Treads Medium Treads Centrium Heavy Treads > --- UTILITY ---------- Advanced Cooling System Large Storage Unit Improved Sensor Array Improved Signal Interpreter Targeting Computer Advanced Targeting Computer Layered Medium Armor Plating Layered Heavy Armor Plating > --- WEAPON ----------- Wave Gun Neutron Cannon Gauss Rifle KE Penetrator > --- INVENTORY -------- Combat Linear Gravjet Advanced Heat Sink Compact Matter Pod Improved Kinecellerator Phase Shifter Force Field Gatling Laser Dispersion Rifle Heavy Plasma Cannon Hypervelocity Gauss Cannon [Rating: 93] Favorites ----------- Power Quantum Reactor Engine Improved Deuterium Engine Power Core Light Nuclear Core Reactor Quantum Reactor Propulsion Light Treads Treads Light Treads Leg Armored Leg Hover Unit Improved Hover Unit Utility Improved Signal Interpreter Device Advanced Heat Sink Storage Large Storage Unit Processor Improved Signal Interpreter Protection Layered Medium Armor Plating Weapon Gauss Rifle Energy Gun Wave Gun Energy Cannon Neutron Cannon Ballistic Gun Gauss Rifle Ballistic Cannon Hypervelocity Gauss Cannon Launcher Mini Grenade Launcher Slashing Weapon Ripper Build | -11 -10 -10 -9 -8 -7 -6 -6 -6 -6 -6 -5 -4 -4 -4 ------- Run | Scr Mat Min Mat Mat Fac Fac Ext Cet Arc Hub Fac Fac Was Fac Slots Evolved 12 | . . . 2 2 2 2 . . . . 2 2 . . Power 1 | . . . . . 1 . . . . . . . . . Propulsion 2 | . . . 1 . . . . . . . 1 . . . Utility 7 | . . . 1 1 1 1 . . . . 1 2 . . Weapon 2 | . . . . 1 . 1 . . . . . . . . Parts Attached 145 | 6 2 . 4 7 17 16 28 15 4 3 14 1 8 20 Power 27 | 1 . . . 1 3 3 7 5 . 1 2 . 1 3 Engine 11 | 1 . . . . 1 2 3 2 . 1 1 . . . Core 9 | . . . . 1 2 1 4 . . . 1 . . . Reactor 7 | . . . . . . . . 3 . . . . 1 3 Propulsion 23 | 2 . . 2 1 4 . 6 . 2 . 2 . 1 3 Treads 11 | 2 . . 2 1 1 . . . 2 . 1 . 1 1 Leg 10 | . . . . . 3 . 4 . . . 1 . . 2 Wheel . | . . . . . . . . . . . . . . . Hover 2 | . . . . . . . 2 . . . . . . . Flight . | . . . . . . . . . . . . . . . Utility 55 | 1 2 . 1 2 7 8 8 7 . . 5 1 2 11 Device 30 | . 1 . 1 1 2 5 4 6 . . 2 . 2 6 Storage 5 | 1 1 . . . . 1 1 . . . . . . 1 Processor 4 | . . . . . 1 . 1 . . . 2 . . . Hackware . | . . . . . . . . . . . . . . . Protection 16 | . . . . 1 4 2 2 1 . . 1 1 . 4 Artifact . | . . . . . . . . . . . . . . . Weapon 40 | 2 . . 1 3 3 5 7 3 2 2 5 . 4 3 Energy Gun 12 | 2 . . . . 2 1 . 1 . 1 1 . 4 . Energy Cannon 6 | . . . . 1 . . 2 . . . 1 . . 2 Ballistic Gun 16 | . . . 1 2 1 4 . 2 2 1 3 . . . Ballistic Cannon 2 | . . . . . . . 1 . . . . . . 1 Launcher 2 | . . . . . . . 2 . . . . . . . Special Weapon . | . . . . . . . . . . . . . . . Impact Weapon . | . . . . . . . . . . . . . . . Slashing Weapon 2 | . . . . . . . 2 . . . . . . . Piercing Weapon . | . . . . . . . . . . . . . . . Special Melee Weapon . | . . . . . . . . . . . . . . . Unidentified Prototypes 3 | . . . . . . . 1 1 1 . . . . . Parts Lost 52 | . . . . 1 . 3 22 6 2 2 2 . 4 10 Power 11 | . . . . . . . 6 2 . 1 . . . 2 Propulsion 6 | . . . . . . . 3 . . . . . 2 1 Utility 17 | . . . . 1 . 1 6 3 . . 1 . 1 4 Weapon 18 | . . . . . . 2 7 1 2 1 1 . 1 3 Highest Loss Streak 21 | . . . . 1 . 3 21 4 1 1 1 . 2 9 Average Slot Usage (%) 90 | . 92 100 91 98 99 98 74 98 98 92 93 89 77 73 Engine 3 | . 14 14 11 2 3 6 5 . . . 5 5 2 . Core 3 | . . . . 6 10 5 1 4 . . 1 5 2 . Reactor 3 | . . . . . . . . 7 13 12 3 . 2 8 Treads 11 | . 28 28 26 27 21 . . . 1 13 14 15 10 6 Leg 6 | . . . . . 1 20 14 20 16 . 1 . . . Device 12 | . 3 14 21 16 10 14 12 9 13 13 11 10 12 11 Storage 6 | . 16 14 11 9 7 6 2 6 6 6 5 5 5 4 Processor 10 | . . . . . 5 6 10 13 13 13 17 15 15 14 Protection 7 | . . . . 9 12 11 6 8 6 6 5 10 6 6 Energy Gun 6 | . 28 28 18 . 8 9 1 1 . 4 4 5 8 1 Energy Cannon 2 | . . . . 8 5 . 2 1 . . 3 5 1 7 Ballistic Gun 9 | . . . 3 18 7 15 5 9 18 14 11 10 7 4 Slashing Weapon 2 | . . . . . . . 4 7 6 6 1 . . . Naked Turns . | . . . . . . . . . . . . . . . Heaviest Build 106 | 13 16 14 16 28 43 58 70 86 82 83 79 85 85 106 Greatest Support 150 | 40 40 40 60 60 60 60 60 48 103 103 131 131 150 97 Greatest Overweight (x) 35 | . . . . . 1 . 1 1 1 . . . . 35 Average Overweight (x) . | . . . . . . . . . . . . . . . Largest Inventory Capacity 10 | 6 6 6 6 6 6 10 10 10 10 10 10 10 10 10 Average Capacity 8 | 5 6 6 6 6 6 9 6 10 10 10 10 10 10 9 Most Carried 10 | 6 6 6 6 6 6 10 10 10 10 10 10 8 10 10 Average Carried 7 | 2 5 6 5 5 5 7 5 7 9 8 9 8 8 8 Final Capacity 10 | 6 6 6 6 6 6 10 10 10 10 10 10 10 10 4 Final Carried 10 | 6 6 6 6 6 6 10 5 9 8 10 10 8 8 . Class Distribution -------------------- 42% | Scavenger-Gunner 20% | Mutant 18% | Scavenger-Tank 7% | Scavenger-Mutant 7% | Scavenger-Skirmisher Dominant Class ---------------- Mutant | -10/Materials Mutant | -10/Mines Mutant | -9/Materials Scavenger-Tank | -8/Materials Scavenger-Tank | -7/Factory Scavenger-Tank | -6/Factory Mutant | -6/Extension Scavenger-Gunner | -6/Cetus Scavenger-Gunner | -6/Archives Scavenger-Gunner | -6/Hub_04(d) Scavenger-Gunner | -5/Factory Scavenger-Gunner | -4/Factory Scavenger-Gunner | -4/Waste Scavenger-Gunner | -4/Factory Resources | -11 -10 -10 -9 -8 -7 -6 -6 -6 -6 -6 -5 -4 -4 -4 ----------- Run | Scr Mat Min Mat Mat Fac Fac Ext Cet Arc Hub Fac Fac Was Fac Matter Collected 3798 | 196 14 83 10 174 192 692 273 695 278 209 561 . 113 308 Remotely . | . . . . . . . . . . . . . . . Salvage Created 6649 | . 14 83 59 420 287 727 545 1009 348 557 1090 . 1024 486 Parts 249 | . 1 2 6 18 15 25 32 38 11 23 46 . 10 22 Haulers Intercepted 1 | . . . . . . . . . . . 1 . . . Recyclers Shooed . | . . . . . . . . . . . . . . . Parts Field Recycled . | . . . . . . . . . . . . . . . Retrieved Matter . | . . . . . . . . . . . . . . . Parts Self-Destructed . | . . . . . . . . . . . . . . . Prevented . | . . . . . . . . . . . . . . . Kills | -11 -10 -10 -9 -8 -7 -6 -6 -6 -6 -6 -5 -4 -4 -4 ------- Run | Scr Mat Min Mat Mat Fac Fac Ext Cet Arc Hub Fac Fac Was Fac Combat Hostiles Destroyed 100 | . . 2 1 7 5 12 9 19 4 10 16 . 4 11 Melee 3 | . . . . . . . 1 2 . . . . . . Guns 70 | . . 2 1 3 5 12 1 9 4 10 14 . 3 6 Cannons 19 | . . . . 4 . . . 7 . . 2 . 1 5 AOE 7 | . . . . . . . 7 . . . . . . . Classes Destroyed 16 | . 1 1 1 3 1 . 4 2 . . 2 . 1 . Worker 5 | . . . . . . . 4 . . . 1 . . . Builder 6 | . . . . . . . 4 . . . 1 . . 1 Tunneler 1 | . . . . . . . 1 . . . . . . . Hauler 1 | . . . . . . . . . . . 1 . . . Recycler 1 | . . . . . . . . . . . 1 . . . Operator 1 | . . . . 1 . . . . . . . . . . Watcher 10 | . 1 . . . . 1 1 1 . 1 3 . . 2 Swarmer 19 | . . . . . . . . 4 . 3 5 . . 7 Grunt 41 | . . 2 . 3 . 10 5 8 . 4 5 . . 4 Brawler 1 | . . . . 1 . . . . . . . . . . Duelist 2 | . . . . 1 . . . 1 . . . . . . Sentry 17 | . . . 1 2 3 2 3 . 4 2 . . . . Hunter 4 | . . . . . . . . 2 . 1 1 . . . Programmer 7 | . . . . . 2 . . . . . 5 . . . Behemoth 1 | . . . . . . . 1 . . . . . . . Compactor 4 | . . . . . . . . . . . . . 4 . Cetus Guard 4 | . . . . . . . . 4 . . . . . . Best Kill Streak 12 | . 1 2 1 5 2 12 8 6 3 4 5 . 1 5 Combat Bots Only 12 | . . 2 1 5 2 12 4 6 3 4 5 . 1 5 Max Kills in Single Turn 4 | . 1 1 1 1 1 1 4 3 1 2 3 . 1 1 Gunslinging 2 | . . . . . . . . 2 . 1 . . . . Exploded 2 | . . . . . . . 2 . . . . . . . Melee 1 | . . . . . . . 1 1 . . . . . . Uniques/NPCs Destroyed . | . . . . . . . . . . . . . . . Combat | -11 -10 -10 -9 -8 -7 -6 -6 -6 -6 -6 -5 -4 -4 -4 -------- Run | Scr Mat Min Mat Mat Fac Fac Ext Cet Arc Hub Fac Fac Was Fac Damage Taken 10792 | . 6 38 47 285 297 1165 2259 1795 759 518 754 . 429 2440 Core 1978 | . . 14 . . 18 132 384 135 77 20 37 . . 1161 Absorbed by Shields . | . . . . . . . . . . . . . . . Core Remaining (%) 85 | 100 . 94 100 100 97 . . . . 12 96 . . . Volleys Fired 282 | . 2 5 2 19 14 34 22 43 24 23 36 . 28 30 Largest 4 | . 2 2 2 3 3 4 4 3 3 3 4 . 4 4 Hottest 289 | . 90 90 90 108 168 210 217 136 136 142 232 . 277 289 Shots Fired 777 | . 4 10 4 49 35 109 48 102 71 66 121 . 92 66 Gun 627 | . 4 10 4 40 21 109 23 63 71 66 100 . 86 30 Cannon 136 | . . . . 9 14 . 11 39 . . 21 . 6 36 Launcher 14 | . . . . . . . 14 . . . . . . . Special . | . . . . . . . . . . . . . . . Kinetic 521 | . . . . 38 13 98 21 84 62 48 71 . 45 41 Thermal 199 | . 2 5 2 2 8 11 11 9 9 18 50 . 47 25 Explosive 14 | . . . . . . . 14 . . . . . . . Electromagnetic 43 | . 2 5 2 9 14 . 2 9 . . . . . . Robot Hit Streak 66 | . 4 11 14 30 40 17 20 27 18 37 64 . 66 15 Robot Miss Streak 5 | . . . . 1 2 5 2 3 1 3 3 . 2 2 Penetration Max 1 | . . . . . . . 1 1 1 1 1 . . 1 Secondary Targets 15 | . . 1 . 2 . 4 . 5 1 2 . . . . Max Gunslinging Chain 2 | . . 1 . 1 . 1 . 2 1 1 . . . . Shots Hit Robots 645 | . 4 7 3 42 26 101 40 85 62 56 92 . 82 45 Core Hits 315 | . 1 4 2 16 16 65 59 36 19 25 37 . 17 18 Critical Hits 38 | . . . . . 1 1 . 14 2 2 7 . 3 8 Critical Kills 16 | . . . . . . 1 . 5 . 1 4 . . 5 Critical Parts Destroyed 17 | . . . . . 1 . . 8 1 1 3 . . 3 Melee Attacks 13 | . . . . . . . 5 8 . . . . . . Impact . | . . . . . . . . . . . . . . . Slashing 13 | . . . . . . . 5 8 . . . . . . Piercing . | . . . . . . . . . . . . . . . Sneak Attacks . | . . . . . . . . . . . . . . . Combat Hostiles . | . . . . . . . . . . . . . . . Follow-up Attacks 1 | . . . . . . . . 1 . . . . . . Damage Inflicted 15868 | . 55 180 36 586 546 1612 2277 2167 1396 1192 2509 . 2098 1214 Guns 11154 | . 24 93 36 415 389 1612 579 1182 1396 1192 1948 . 1876 412 Cannons 2860 | . . . . 171 157 . 252 695 . . 561 . 222 802 Explosions 1387 | . 31 87 . . . . 1269 . . . . . . . Melee 467 | . . . . . . . 177 290 . . . . . . Ramming . | . . . . . . . . . . . . . . . Kinetic 8681 | . . . . 390 193 1499 541 1404 1141 808 1309 . 862 534 Thermal 4772 | . 31 125 12 25 196 113 237 278 255 384 1200 . 1236 680 Explosive 1269 | . . . . . . . 1269 . . . . . . . Electromagnetic 679 | . 24 55 24 171 157 . 53 195 . . . . . . Impact . | . . . . . . . . . . . . . . . Slashing 467 | . . . . . . . 177 290 . . . . . . Piercing . | . . . . . . . . . . . . . . . Highest Corruption 35 | . . . . . . . . . . . 2 . 24 35 Average Corruption 11 | . . . . . . . . . . . 1 . 12 25 Corruption Purged . | . . . . . . . . . . . . . . . Effects 108 | . . . . . . . . . . . 9 . 32 67 Message Errors 19 | . . . . . . . . . . . 4 . 6 9 Matter Fused 13 | . . . . . . . . . . . . . 4 9 Heat Flow Errors 4 | . . . . . . . . . . . 1 . . 3 Energy Discharges 7 | . . . . . . . . . . . 1 . 2 4 Parts Rejected 1 | . . . . . . . . . . . . . . 1 Data Loss (minor) 9 | . . . . . . . . . . . 1 . 3 5 Misfires 4 | . . . . . . . . . . . . . 2 2 Misdirections 10 | . . . . . . . . . . . . . 1 9 Targeting Errors 35 | . . . . . . . . . . . 1 . 11 23 Weapon Failures 6 | . . . . . . . . . . . 1 . 3 2 Overload Shots . | . . . . . . . . . . . . . . . Overflow Damage 49 | . . . . . . . 40 . . . 3 . . 6 Projectiles 9 | . . . . . . . . . . . 3 . . 6 Explosions 40 | . . . . . . . 40 . . . . . . . Melee . | . . . . . . . . . . . . . . . Knockbacks 3 | . . . . . . . . 3 . . . . . . Impact . | . . . . . . . . . . . . . . . Kinetic 3 | . . . . . . . . 3 . . . . . . Secondary . | . . . . . . . . . . . . . . . Self-Inflicted Damage 6 | . 6 . . . . . . . . . . . . . Shots 1 | . 1 . . . . . . . . . . . . . Rammed . | . . . . . . . . . . . . . . . Targets Rammed . | . . . . . . . . . . . . . . . Kicked . | . . . . . . . . . . . . . . . Crushed . | . . . . . . . . . . . . . . . Highest Temperature 1405 | . 72 177 42 227 410 480 281 416 4 72 576 . 400 1405 Average Temperature 209 | . 38 90 23 100 120 273 98 215 4 30 140 . 180 373 Received Heat Transfer 2562 | . . 27 9 126 72 600 621 462 198 135 153 . . 159 Effects 86 | . . . . 1 2 10 . 5 . . 5 . 3 60 Shutdowns 32 | . . . . . 2 6 . 3 . . 2 . 2 17 Energy Bleed 10 | . . . . 1 . . . . . . 2 . 1 6 Interference 12 | . . . . . . . . 2 . . . . . 10 Matter Decay 5 | . . . . . . 1 . . . . . . . 4 Short Circuit 6 | . . . . . . 2 . . . . 1 . . 3 Damage (minor) 9 | . . . . . . 1 . . . . . . . 8 Damage (major) 9 | . . . . . . . . . . . . . . 9 Damage (core) 3 | . . . . . . . . . . . . . . 3 Siege Activations . | . . . . . . . . . . . . . . . Robots Corrupted 1 | . . . . . . . . 1 . . . . . . Combat Hostiles 1 | . . . . . . . . 1 . . . . . . Parts Fried . | . . . . . . . . . . . . . . . Impact Corruptions . | . . . . . . . . . . . . . . . Robots Melted . | . . . . . . . . . . . . . . . Combat Hostiles . | . . . . . . . . . . . . . . . Parts Melted 7 | . . . . . 1 . 2 . 2 . 1 . 1 . Heat Transferred 6348 | . 50 211 37 74 425 250 374 333 333 592 1275 . 1744 650 Parts Sabotaged . | . . . . . . . . . . . . . . . Parts Stolen . | . . . . . . . . . . . . . . . Parts Stripped . | . . . . . . . . . . . . . . . Power Chain Reactions 2 | . 1 1 . . . . . . . . . . . . Missiles Intercepted . | . . . . . . . . . . . . . . . Alert | -11 -10 -10 -9 -8 -7 -6 -6 -6 -6 -6 -5 -4 -4 -4 ------- Run | Scr Mat Min Mat Mat Fac Fac Ext Cet Arc Hub Fac Fac Was Fac Peak Influence 501 | . 17 82 102 366 247 294 228 501 248 357 488 143 41 188 Initial 150 | . . 5 27 36 142 3 46 93 101 13 150 143 41 . Average 147 | . 11 78 66 238 135 69 115 249 206 152 269 143 26 66 Maximum Alert Level 2 | . . . . 1 1 1 1 2 1 1 2 . . . Low Security (%) 70 | 100 100 100 100 52 91 85 95 20 27 57 34 100 100 100 Level 1 26 | . . . . 47 8 14 4 74 72 42 53 . . . Level 2 2 | . . . . . . . . 5 . . 11 . . . Level 3 . | . . . . . . . . . . . . . . . Level 4 . | . . . . . . . . . . . . . . . Level 5 . | . . . . . . . . . . . . . . . High Security . | . . . . . . . . . . . . . . . Max Security . | . . . . . . . . . . . . . . . Squads Dispatched 24 | . . . . 4 2 3 2 1 . 2 5 . . 5 Investigation 5 | . . . . . . 2 . 1 . . 1 . . 1 Extermination 5 | . . . . . 2 . . . . . 2 . . 1 Reinforcement 10 | . . . . 1 . 1 2 . . 1 2 . . 3 Assault 1 | . . . . 1 . . . . . . . . . . Garrison 3 | . . . . 2 . . . . . 1 . . . . Intercept . | . . . . . . . . . . . . . . . Construction Impeded 2 | . . . . . . 1 . . . . . . . 1 Haulers Reinforced 2 | . . . . . . . . . . . 2 . . . Stealth | -11 -10 -10 -9 -8 -7 -6 -6 -6 -6 -6 -5 -4 -4 -4 --------- Run | Scr Mat Min Mat Mat Fac Fac Ext Cet Arc Hub Fac Fac Was Fac Distress Signals 5 | . . . . . . . . 1 . . 3 . . 1 Communications Jammed . | . . . . . . . . . . . . . . . Distress Signals . | . . . . . . . . . . . . . . . Times Spotted 154 | . 1 4 2 8 6 14 22 24 11 14 21 . 5 22 Peak Tracking Total 9 | . . 2 1 3 2 9 6 6 2 4 6 . 2 7 Tactical Retreats 15 | . . . 1 . 1 1 4 3 . 1 3 . . 1 Traps | -11 -10 -10 -9 -8 -7 -6 -6 -6 -6 -6 -5 -4 -4 -4 ------- Run | Scr Mat Min Mat Mat Fac Fac Ext Cet Arc Hub Fac Fac Was Fac Traps Triggered 8 | . . . . . 1 2 1 . . . 2 1 . 1 Indirectly . | . . . . . . . . . . . . . . . Trap Hack Attempts . | . . . . . . . . . . . . . . . Triggered . | . . . . . . . . . . . . . . . Disarmed . | . . . . . . . . . . . . . . . Reprogrammed . | . . . . . . . . . . . . . . . Reused . | . . . . . . . . . . . . . . . Traps Extracted . | . . . . . . . . . . . . . . . Installed . | . . . . . . . . . . . . . . . Triggered . | . . . . . . . . . . . . . . . Machines | -11 -10 -10 -9 -8 -7 -6 -6 -6 -6 -6 -5 -4 -4 -4 ---------- Run | Scr Mat Min Mat Mat Fac Fac Ext Cet Arc Hub Fac Fac Was Fac Machines Disabled 17 | . . 3 . 1 . 1 2 2 3 1 3 . . 1 Max in Single Turn 3 | . . 3 . 1 . 1 2 1 1 1 1 . . 1 Garrison Access 1 | . . . . 1 . . . . . . . . . . Machines Sabotaged . | . . . . . . . . . . . . . . . Garrisons Compromised . | . . . . . . . . . . . . . . . Overloaded Fab Kills . | . . . . . . . . . . . . . . . Fab Network Shutdowns . | . . . . . . . . . . . . . . . Hacking | -11 -10 -10 -9 -8 -7 -6 -6 -6 -6 -6 -5 -4 -4 -4 --------- Run | Scr Mat Min Mat Mat Fac Fac Ext Cet Arc Hub Fac Fac Was Fac Machines Accessed 23 | . 2 1 1 2 4 . 7 3 1 . 2 . . . Terminals 21 | . 2 1 1 2 4 . 7 3 . . 1 . . . Fabricators 1 | . . . . . . . . . . . 1 . . . Repair Stations . | . . . . . . . . . . . . . . . Recycling Units . | . . . . . . . . . . . . . . . Scanalyzers . | . . . . . . . . . . . . . . . Garrison Access . | . . . . . . . . . . . . . . . Total Hacks 76 | . 7 2 2 3 7 . 17 8 25 . 5 . . . Successful 50 | . 5 1 1 2 5 . 5 2 25 . 4 . . . Failed 26 | . 2 1 1 1 2 . 12 6 . . 1 . . . Catastrophic 2 | . . . . . . . 1 1 . . . . . . Database Lockouts . | . . . . . . . . . . . . . . . Manual 6 | . . . . . . . . 1 5 . . . . . Terminals 48 | . 7 2 2 3 7 . 17 8 . . 2 . . . Fabricators 3 | . . . . . . . . . . . 3 . . . Repair Stations . | . . . . . . . . . . . . . . . Recycling Units . | . . . . . . . . . . . . . . . Scanalyzers . | . . . . . . . . . . . . . . . Garrison Access . | . . . . . . . . . . . . . . . Terminal Hacks 48 | . 5 1 1 2 5 . 5 2 25 . 2 . . . Record 31 | . 1 1 . 1 . . . 2 25 . 1 . . . Part Schematic 1 | . . . . . 1 . . . . . . . . . Robot Analysis 2 | . 2 . . . . . . . . . . . . . Prototype ID Bank 1 | . 1 . . . . . . . . . . . . . Open Door 2 | . . . . . . . 2 . . . . . . . Alert Level 2 | . . . 1 . . . 1 . . . . . . . Locate Traps 3 | . 1 . . . 2 . . . . . . . . . Dispatch Records 1 | . . . . 1 . . . . . . . . . . Surveillance Status 1 | . . . . . 1 . . . . . . . . . Recall Reinforcements 1 | . . . . . . . 1 . . . . . . . Recall Assault 1 | . . . . . 1 . . . . . . . . . Zone Layout 2 | . . . . . . . 1 . . . 1 . . . Fabricator Hacks 2 | . . . . . . . . . . . 2 . . . Load Schematic 1 | . . . . . . . . . . . 1 . . . Build 1 | . . . . . . . . . . . 1 . . . Repair Station Hacks . | . . . . . . . . . . . . . . . Recycling Unit Hacks . | . . . . . . . . . . . . . . . Scanalyzer . | . . . . . . . . . . . . . . . Garrison Access Hacks . | . . . . . . . . . . . . . . . Unauthorized Hacks . | . . . . . . . . . . . . . . . Terminals . | . . . . . . . . . . . . . . . Fabricators . | . . . . . . . . . . . . . . . Repair Stations . | . . . . . . . . . . . . . . . Recycling Units . | . . . . . . . . . . . . . . . Scanalyzers . | . . . . . . . . . . . . . . . Garrison Access . | . . . . . . . . . . . . . . . Data Cores Recovered . | . . . . . . . . . . . . . . . Used . | . . . . . . . . . . . . . . . Hacking Detections 17 | . 1 1 1 2 2 . 5 3 . . 2 . . . Full Trace Events 2 | . . . . . . . . 1 . . 1 . . . Feedback Events . | . . . . . . . . . . . . . . . Feedback Blocked . | . . . . . . . . . . . . . . . Robot Schematics Acquired . | . . . . . . . . . . . . . . . Robots Built . | . . . . . . . . . . . . . . . Matter . | . . . . . . . . . . . . . . . Time . | . . . . . . . . . . . . . . . Total Robot Build Rating . | . . . . . . . . . . . . . . . Part Schematics Acquired 1 | . . . . . 1 . . . . . . . . . Parts Built 1 | . . . . . . . . . . . 1 . . . Matter 212 | . . . . . . . . . . . 212 . . . Time 53 | . . . . . . . . . . . 53 . . . Total Part Build Rating 6 | . . . . . . . . . . . 6 . . . Parts Repaired . | . . . . . . . . . . . . . . . Time . | . . . . . . . . . . . . . . . Parts Recycled . | . . . . . . . . . . . . . . . Recycled Matter . | . . . . . . . . . . . . . . . Retrieved Matter . | . . . . . . . . . . . . . . . Retrieved Components . | . . . . . . . . . . . . . . . Parts Scanalyzed . | . . . . . . . . . . . . . . . Part Schematics Acquired . | . . . . . . . . . . . . . . . Parts Damaged . | . . . . . . . . . . . . . . . Bothacking | -11 -10 -10 -9 -8 -7 -6 -6 -6 -6 -6 -5 -4 -4 -4 ------------ Run | Scr Mat Min Mat Mat Fac Fac Ext Cet Arc Hub Fac Fac Was Fac Used RIF Installer . | . . . . . . . . . . . . . . . Robots Hacked . | . . . . . . . . . . . . . . . Non-combat . | . . . . . . . . . . . . . . . Combat . | . . . . . . . . . . . . . . . Robot Hacks Applied . | . . . . . . . . . . . . . . . Relay Couplers Released 1 | . . . . 1 . . . . . . . . . . Machine Destruction 1 | . . . . 1 . . . . . . . . . . Robots Rewired . | . . . . . . . . . . . . . . . Allies Hacked . | . . . . . . . . . . . . . . . Hacks Repelled . | . . . . . . . . . . . . . . . Allies | -11 -10 -10 -9 -8 -7 -6 -6 -6 -6 -6 -5 -4 -4 -4 -------- Run | Scr Mat Min Mat Mat Fac Fac Ext Cet Arc Hub Fac Fac Was Fac Total Allies 3 | . . . . . . . 3 . . . . . . . Largest Group 3 | . . . . . . . 3 3 . . . . . . Highest-Rated Group 76 | . . . . . . . 76 76 . . . . . . Highest-Rated Ally 31 | . . . . . . . 31 31 . . . . . . Total Orders 2 | . . . . . . . . . . . . . . 2 EXPLORE 2 | . . . . . . . . . . . . . . 2 Ally Attacks 24 | . . . . . . . 10 14 . . . . . . Total Damage 581 | . . . . . . . 309 272 . . . . . . Kills 2 | . . . . . . . 2 . . . . . . . Allies Corrupted . | . . . . . . . . . . . . . . . Allies Melted . | . . . . . . . . . . . . . . . Intel | -11 -10 -10 -9 -8 -7 -6 -6 -6 -6 -6 -5 -4 -4 -4 ------- Run | Scr Mat Min Mat Mat Fac Fac Ext Cet Arc Hub Fac Fac Was Fac Robot Analysis Total 2 | . 2 . . . . . . . . . . . . . Derelict Logs Recovered . | . . . . . . . . . . . . . . . Drone Launches 8 | . . . . . . . . . . . . . . 8 Drone Recoveries . | . . . . . . . . . . . . . . . Exploration | -11 -10 -10 -9 -8 -7 -6 -6 -6 -6 -6 -5 -4 -4 -4 ------------- Run | Scr Mat Min Mat Mat Fac Fac Ext Cet Arc Hub Fac Fac Was Fac Turns Passed 6523 | 85 147 130 309 264 863 464 701 465 450 299 1176 54 433 683 Spaces Moved 3426 | 41 85 70 161 120 464 224 568 185 236 129 583 34 202 324 Core 252 | 1 . . . . . . 185 . . . . . . 66 Treads 2125 | 40 85 70 161 120 417 . . . 40 129 583 34 202 244 Legs 995 | . . . . . 47 224 329 185 196 . . . . 14 Wheels . | . . . . . . . . . . . . . . . Hover 54 | . . . . . . . 54 . . . . . . . Flight . | . . . . . . . . . . . . . . . Fastest Speed 50 | 50 160 160 160 160 130 130 50 120 150 160 160 160 160 50 Average Speed 146 | 157 160 160 160 160 157 130 101 149 152 160 160 160 160 160 Slowest Speed 1800 | 160 160 160 160 160 160 130 160 150 180 160 160 160 160 1800 Overloaded Moves . | . . . . . . . . . . . . . . . Propulsion Burnouts . | . . . . . . . . . . . . . . . Robots Hopped . | . . . . . . . . . . . . . . . Cave-ins Triggered . | . . . . . . . . . . . . . . . Exploration Rate (%) 31 | 4 18 17 16 11 11 10 76 63 95 20 22 2 89 16 Regions Visited 14 Branch Regions 5 Pre-discovered Areas . | . . . . . . . . . . . . . . . Known Exits Taken 7 | . . . . . 1 1 1 1 1 1 1 . . . Unknown Exits Taken 5 | 1 1 1 1 1 . . . . . . . . . . Scrap Searched . | . . . . . . . . . . . . . . . Spaces Dug . | . . . . . . . . . . . . . . . Terrain Destroyed 95 | . 3 . . . . . 72 14 . . 3 . . 3 Melee . | . . . . . . . . . . . . . . . Projectile 22 | . . . . . . . 2 14 . . 3 . . 3 AOE 73 | . 3 . . . . . 70 . . . . . . . Terrain Rammed . | . . . . . . . . . . . . . . . Walls Destroyed . | . . . . . . . . . . . . . . . Machines Disabled . | . . . . . . . . . . . . . . . Actions | -11 -10 -10 -9 -8 -7 -6 -6 -6 -6 -6 -5 -4 -4 -4 --------- Run | Scr Mat Min Mat Mat Fac Fac Ext Cet Arc Hub Fac Fac Was Fac Total 4329 | 59 92 78 211 157 571 320 649 273 276 178 746 35 248 436 Wait 321 | 7 . 4 33 1 54 33 15 18 7 16 96 . 4 33 Move 3413 | 40 84 69 160 119 463 223 567 184 235 128 582 34 201 324 Hop . | . . . . . . . . . . . . . . . Pick Up 70 | 6 2 . 5 6 7 6 5 3 3 5 7 . 5 10 Fast Attach 68 | 6 1 . 3 2 10 6 16 6 1 2 3 . 5 7 Attach 38 | . . . . 4 2 2 11 3 3 1 4 1 3 4 Detach . | . . . . . . . . . . . . . . . Swap 39 | . 1 . 1 1 5 8 1 6 . . 7 . . 9 Drop 84 | . 2 . 7 5 16 8 5 3 3 3 11 . 2 19 Fire 282 | . 2 5 2 19 14 34 22 43 24 23 36 . 28 30 Melee 12 | . . . . . . . 5 7 . . . . . . Ram . | . . . . . . . . . . . . . . . Kick . | . . . . . . . . . . . . . . . Crush . | . . . . . . . . . . . . . . . Escape Stasis 2 | . . . . . . . 2 . . . . . . . Rewire . | . . . . . . . . . . . . . . . Trap . | . . . . . . . . . . . . . . . Miscellaneous . | . . . . . . . . . . . . . . . Route ------- -11/Scrapyard -10/Materials -10/Mines -9/Materials -8/Materials -7/Factory -6/Factory -6/Extension (discovered 2 exits: *Fac / *Cet) -6/Cetus -6/Archives (discovered 3 exits: *Fac / *Hub x2) -6/Hub_04(d) -5/Factory -4/Factory -4/Waste -4/Factory (discovered 1 exit: [*Res]) History --------- Turn | Location | Event 49 | -11/Scrapyard | Discovered new exit (range 16) 86 | -11/Scrapyard | Entered Materials 106 | -10/Materials | Discovered new exit (range 16) 233 | -10/Materials | Entered Mines 314 | -10/Mines | Build established: Mutant 336 | -10/Mines | Discovered new exit (range 10) 363 | -10/Mines | Entered Materials 363 | -9/Materials | Evolved 2 slots: Propulsion x1, Utility x1 613 | -9/Materials | Discovered new exit (range 16) 672 | -9/Materials | Entered another Materials area 672 | -8/Materials | Evolved 2 slots: Utility x1, Weapon x1 705 | -8/Materials | Garrison activated, responded to threat 933 | -8/Materials | Discovered new exit (range 3) 936 | -8/Materials | Entered Factory 936 | -7/Factory | Evolved 2 slots: Power x1, Utility x1 1074 | -7/Factory | Build established: Scavenger-Tank 1763 | -7/Factory | Discovered new exit (range 4) 1766 | -7/Factory | Identified exit to Factory 1799 | -7/Factory | Entered another Factory area 1799 | -6/Factory | Evolved 2 slots: Utility x1, Weapon x1 2182 | -6/Factory | Lost 3 parts (1u2w) 2190 | -6/Factory | Destroyed 12 combat bots 2235 | -6/Factory | Discovered new exit (range 13) 2262 | -6/Factory | Identified exit to Extension 2263 | -6/Factory | Entered Extension 2414 | -6/Extension | Spotted B-75 Beast 2445 | -6/Extension | Destroyed B-75 Beast 2464 | -6/Extension | Spotted B-75 Beast 2513 | -6/Extension | Disrupted transfer network 2576 | -6/Extension | Lost 21 parts (5p3n6u7w) 2615 | -6/Extension | Core integrity fell below 50% 2739 | -6/Extension | Rescued a captive Derelict 2745 | -6/Extension | Rescued a captive Derelict 2770 | -6/Extension | Build established: Mutant 2825 | -6/Extension | Rescued a captive Derelict 2935 | -6/Extension | Discovered new exit (range 10) 2936 | -6/Extension | Discovered new exit (range 6) 2958 | -6/Extension | Identified exit to Factory 2962 | -6/Extension | Identified exit to Cetus 2964 | -6/Extension | Entered Cetus 2964 | -6/Cetus | Accompanied by 3 allies 2984 | -6/Cetus | Spotted Cetus Guard 2984 | -6/Cetus | Spotted Cetus Guard 2985 | -6/Cetus | Destroyed Cetus Guard 2987 | -6/Cetus | Spotted Cetus Guard 2988 | -6/Cetus | Destroyed Cetus Guard 2989 | -6/Cetus | Spotted Cetus Guard 2999 | -6/Cetus | Destroyed Cetus Guard 3041 | -6/Cetus | Destroyed Cetus Guard 3159 | -6/Cetus | Lost 4 parts (2p2u) 3301 | -6/Cetus | Cetus Manufacturing Module disabled 3402 | -6/Cetus | Discovered new exit (range 16) 3427 | -6/Cetus | Identified exit to Archives 3429 | -6/Cetus | Entered Archives 3478 | -6/Archives | Core integrity fell below 20% 3513 | -6/Archives | Unable to access archive contents 3554 | -6/Archives | Discovered new exit (range 16) 3567 | -6/Archives | Discovered new exit (range 16) 3582 | -6/Archives | Unable to access archive contents 3606 | -6/Archives | Unable to access archive contents 3617 | -6/Archives | Build established: Scavenger-Gunner 3621 | -6/Archives | Unable to access archive contents 3646 | -6/Archives | Identified exit to Hub_04(d) 3732 | -6/Archives | Discovered exit to Factory (range 16) 3879 | -6/Archives | Entered Hub_04(d) 4126 | -6/Hub_04(d) | Discovered exit to Factory (range 13) 4127 | -6/Hub_04(d) | Garrison activated, responded to threat 4178 | -6/Hub_04(d) | Entered Factory 4178 | -5/Factory | Evolved 2 slots: Propulsion x1, Utility x1 4957 | -5/Factory | Fabricated Lyr. Heavy Armor Plating? 5324 | -5/Factory | Discovered new exit (range 16) 5352 | -5/Factory | Identified exit to Factory 5354 | -5/Factory | Entered another Factory area 5354 | -4/Factory | Evolved 2 slots: Utility x2 5408 | -4/Factory | Sucked down chute 5408 | -4/Factory | Entered Waste 5423 | -4/Waste | EMP discharged 5429 | -4/Waste | Spotted C-40 Crusher 5490 | -4/Waste | Spotted C-40 Crusher 5500 | -4/Waste | Destroyed C-40 Crusher 5511 | -4/Waste | Spotted C-40 Crusher 5523 | -4/Waste | EMP discharged 5523 | -4/Waste | System corruption reached 10% 5525 | -4/Waste | Crushed by Compactor (0 parts destroyed, 1 dropped) 5533 | -4/Waste | Crushed by Compactor (0 parts destroyed, 1 dropped) 5533 | -4/Waste | Destroyed C-40 Crusher 5590 | -4/Waste | Crushed by Compactor (0 parts destroyed, 2 dropped) 5592 | -4/Waste | Destroyed C-40 Crusher 5598 | -4/Waste | Spotted C-40 Crusher 5609 | -4/Waste | Crushed by Compactor (1 part destroyed, 2 dropped) 5612 | -4/Waste | Crushed by Compactor (0 parts destroyed, 1 dropped) 5618 | -4/Waste | Crushed by Compactor (1 part destroyed, 1 dropped) 5620 | -4/Waste | Destroyed C-40 Crusher 5623 | -4/Waste | EMP discharged 5641 | -4/Waste | Spotted C-40 Crusher 5723 | -4/Waste | EMP discharged 5739 | -4/Waste | Crushed by Compactor (0 parts destroyed, 1 dropped) 5743 | -4/Waste | Crushed by Compactor (0 parts destroyed, 1 dropped) 5749 | -4/Waste | Crushed by Compactor (1 part destroyed) 5788 | -4/Waste | Spotted C-40 Crusher 5815 | -4/Waste | Discovered new exit (range 16) 5823 | -4/Waste | EMP discharged 5838 | -4/Waste | Identified exit to Factory 5841 | -4/Waste | Entered Factory 6008 | -4/Factory | Discovered new exit (range 60) 6459 | -4/Factory | Core integrity fell below 50% 6475 | -4/Factory | System corruption reached 30% 6497 | -4/Factory | Core integrity fell below 20% 6513 | -4/Factory | Spotted B-86 Titan 6524 | -4/Factory | Destroyed by P-70 Sage with Tesla Rifle Last Messages --------------- Dropped Flexi-carbon Leg. Acquired Lgt. Antimatter Reactor. Acquired 57 matter. Acquired Flexi-carbon Leg. System corrupted: Flexi-carbon Leg rejected. Lgt. Antimatter Reactor destroyed. Acquired Flexi-carbon Leg. Adv. Targeting Computer destroyed. Acquired 77 matter. System corrupted: Flexi-carbon Leg stumbles. R-10 Processor collects Broken Hvy. Neutron Cannon. A# QX/VQ9HUF&2MRWH,VSKQDAC R-10 Processor collects Antimatter Reactor. Imp. Medium Armor Plating destroyed. Flexi-carbon Leg destroyed. Dynamic Insulation System destroyed. System corrupted: Heat flow error (+287). 3F%YH/%ATKZ>RSUSIYZAOD6% ,UKTGEJZ Subcomponent Replicator disabled. [Achievement: 10k Club] Map ----- +----------------------------------------------------+ | # # %[ """""" #?# "T | | # !! # ######### """""" #?# "" | | # !! # #[ # #?# "" | | # # # """% # """""" #?# | | # + # """ + """""" | | # # +% """ #% """""" ######### | | # # # # """""" #???????? | | ######## # """ # #???????? | | #?????# # """ [# """""" #???????? | | ####### # """ # """""" #???????? | | # # """"""? #???????? | | ! # """ # """"""?? +???????? | | / """ # ??????????? | | ^ # """ # ??????????? | | ^^ # # ??????????? | | ######### p ####+#### ! "??????????? | | #???????# #### #### ""??????????? | | ##???????# G ?????????? | | ?????????# ""??????????? | | ?????????# """ " ?????????? | | ?????????# ! Y" ????????? | | ?????????# """ ????????? | | ?????????# ! ######### ????????? | | ?????????# """ #?????????????????????? | | ?????????# " """ #?????????????????????? | | ?????????# """"" @ #?????????????????????? | | ?????????# #?????????????????????? | | ????????? !!! #?????????????????????? | | ???????? !!! #?????????????????????? | | ???????### !!! #?????????????????????? | | ?????????####+######## #?????????????????????? | | ?????????????????????# #?????????????????????? | | ?????????????????????# #?????????????????????? | | ?????????????????????# #?????????????????????? | | ?????????????????????# #?????????????????????? | | ?????????????????????# #?????????????????????? | | ?????????????????????# #?????????????????????? | | ?????????????????????# #?????????????????????? | | ?????????????????????# ??????????????????????? | | ?????????????????????# ??????????????????????? | | ??????????????????????? ??????????????????????? | | ?????????????????????????????????????????????????? | | ?????????????????????????????????????????????????? | | ?????????????????????????????????????????????????? | | ?????????????????????????????????????????????????? | | ?????????????????????????????????????????????????? | | ?????????????????????????????????????????????????? | | ?????????????????????????????????????????????????? | | ?????????????????????????????????????????????????? | | ?????????????????????????????????????????????????? | +----------------------------------------------------+ Best States ------------- Heat Dissipation 78 Energy Generation 45 Energy Capacity 600 Matter Stores 300 Matter Capacity 450 Sight Range 16 Robot Scan Range 16 Terrain Scan Density 10 ECM Strength 2 Cloak Strength 2 EM Shielding 2 Armor Coverage 825 Resistance: KI 20 Resistance: TH 20 Resistance: EX 20 Resistance: EM 20 Resistance: I 20 Resistance: S 20 Resistance: P 20 Propulsion Shielding 66 Weapon Cycling 15 Evasion (%) 53 Targeting Accuracy 13 Target Analysis 6 Recoil Reduction 4 Offensive Hacking 10 Item Schematics ----------------- Lyr. Heavy Armor Plating | -7/Factory | Hacked Robot Schematics ------------------ None Fabricated ------------ Lyr. Heavy Armor Plating | x1 | -5/Factory Alien Tech Used ----------------- None Achievements -------------- 10k Club Challenges ------------ None Game ------ Seed NeutronBladeRegulator Manual? 0 Play Time 01:42:11 Cumulative 22.1 hours Start 2021.12.06 @ 21:27:02 End 2021.12.08 @ 23:20:47 Sessions 3 Manual Loads 0 Difficulty Adventurer Special Mode None Game No. 22 Rogue 17 Adventurer 5 Explorer 0 Win Type - Total 0 Types 0/0/0/0/0/0/0/0/0 Lore% 23 Gallery% 30 Achievement% 17 Wizard Run 0 Options --------- ASCII 0 Keyboard 0 Movement Mouse Keybinds 0 Fullscreen 1 Font 24/Smallcaps Map View 113x50 Tactical HUD 0 Map Filters NONE Filters NONE Steam 1 RUN: 4e2b43b8-9fa4-448d-9bfc-45bb8ca48cb0